Cogmind - Beta 11 @@@ ROGUE MODE // 2022.04.13 @ 18:28:39 Player: maxwell Result: Destroyed by CL-ANK with CL-ANK's Mallet Performance ------------- Evolutions (1) 500 Regions Visited (5) 1000 Robots Destroyed (64) 320 Value Destroyed (1156) 1156 Prototype IDs (39) 780 Alien Tech Used (0) 0 Bonus (-636) -636 TOTAL SCORE: 3120 Bonus ------- High Alert Combat Kills 11 Aligned with FarCom 300 Friendly Fire -947 Cogmind --------- Core Integrity 0/400 Matter 135/300 Energy 170/170 System Corruption 0% Temperature Cool (0) Movement Treading (240) Ox1 Location -8/Mines Parts ------- > --- POWER (1) -------- Light Neutrino Core > --- PROPULSION (3) --- Light Treads Light Treads Light Treads > --- UTILITY (2) ------ High-capacity Storage Unit Advanced Component Analysis Suite > --- WEAPON (3) ------- AWS/Autocannon > --- INVENTORY (20) --- Light Treads Light Treads Light Treads High-capacity Matter Pod (0) Structural Scanner Improved Targeting Computer Advanced Launcher Guidance Computer Experimental Core Analyzer Advanced Weapon Cycler AS-neutralizer No. 17b Guided Plasma Cannon Heavy Assault Rifle XL Autogun Array Mini Grenade Launcher Peak State ------------ > --- POWER ------------ Light Neutrino Core > --- PROPULSION ------- Light Treads Light Treads Light Treads > --- UTILITY ---------- High-capacity Storage Unit Advanced Component Analysis Suite > --- WEAPON ----------- AWS/Autocannon > --- INVENTORY -------- Light Treads Light Treads Light Treads High-capacity Matter Pod Structural Scanner Improved Targeting Computer Advanced Launcher Guidance Computer Experimental Core Analyzer Advanced Weapon Cycler AS-neutralizer No. 17b Guided Plasma Cannon Heavy Assault Rifle XL Autogun Array Mini Grenade Launcher [Rating: 57] Favorites ----------- Power Ion Engine Engine Ion Engine Power Core Light Neutrino Core Propulsion Light Treads Treads Light Treads Leg Aluminum Leg Utility High-capacity Storage Unit Device Advanced Component Analysis Suite Storage High-capacity Storage Unit Processor Improved Targeting Computer Weapon Heavy Assault Rifle Energy Gun Medium Laser Energy Cannon Advanced Beam Cannon Ballistic Gun Heavy Assault Rifle Ballistic Cannon Bore Cannon Launcher Mini Grenade Launcher Build | -11 -10 -9 -9 -9 -8 ------- Run | Scr Mat Mat Min Exi Min Slots Evolved 2 | . . 2 . . . Power . | . . . . . . Propulsion 1 | . . 1 . . . Utility . | . . . . . . Weapon 1 | . . 1 . . . Parts Attached 63 | 6 14 13 3 26 1 Power 8 | 1 3 1 . 3 . Engine 7 | 1 3 1 . 2 . Core 1 | . . . . 1 . Reactor . | . . . . . . Propulsion 17 | 2 2 5 . 8 . Treads 14 | 2 . 4 . 8 . Leg 3 | . 2 1 . . . Wheel . | . . . . . . Hover . | . . . . . . Flight . | . . . . . . Utility 6 | 1 3 1 . 1 . Device 1 | . . . . 1 . Storage 4 | 1 2 1 . . . Processor 1 | . 1 . . . . Hackware . | . . . . . . Protection . | . . . . . . Artifact . | . . . . . . Weapon 32 | 2 6 6 3 14 1 Energy Gun 2 | 1 . 1 . . . Energy Cannon 1 | . . 1 . . . Ballistic Gun 23 | 1 6 3 2 11 . Ballistic Cannon 3 | . . . 1 1 1 Launcher 3 | . . 1 . 2 . Special Weapon . | . . . . . . Impact Weapon . | . . . . . . Slashing Weapon . | . . . . . . Piercing Weapon . | . . . . . . Special Melee Weapon . | . . . . . . Unidentified Prototypes 3 | . . 2 . 1 . Corrupted Parts 1 | . 1 . . . . System Corruption 3 | . 3 . . . . Parts Lost 14 | . 3 3 . 8 . Power 4 | . 1 1 . 2 . Propulsion 9 | . 1 2 . 6 . Utility . | . . . . . . Weapon 1 | . 1 . . . . Highest Loss Streak 3 | . 2 2 . 3 . To Critical Strikes 8 | . . . . 8 . Average Slot Usage (%) 96 | . 88 94 99 96 98 Engine 8 | . 14 7 11 7 . Core 1 | . . . . 3 11 Treads 28 | . 17 19 33 32 33 Leg 3 | . 9 11 . . . Device 1 | . . . . 2 11 Storage 11 | . 14 11 11 11 11 Processor 8 | . 3 11 11 8 . Ballistic Gun 25 | . 26 32 17 24 31 Ballistic Cannon 2 | . . . 4 3 . Launcher 3 | . . . 11 2 . Naked Turns . | . . . . . . Heaviest Build 110 | 14 29 54 58 110 109 Greatest Support 60 | 40 40 60 60 60 60 Greatest Overweight (x) 2 | . 2 1 . 1 1 Average Overweight (x) . | . . . . . . Largest Inventory Capacity 20 | 8 15 20 20 20 20 Average Capacity 18 | 6 12 16 20 20 20 Most Carried 20 | 2 14 20 20 20 20 Average Carried 16 | . 6 15 19 17 19 Final Capacity 20 | 8 15 20 20 20 20 Final Carried 20 | 2 14 20 20 20 17 Class Distribution -------------------- 43% | Scavenger-Gunner 30% | Scavenger-Mutant 13% | Mutant 12% | Gunner Dominant Class ---------------- Mutant | -10/Materials Scavenger-Gunner | -9/Materials Scavenger-Mutant | -9/Mines Scavenger-Gunner | -9/Exiles Scavenger-Gunner | -8/Mines Resources | -11 -10 -9 -9 -9 -8 ----------- Run | Scr Mat Mat Min Exi Min Matter Collected 2221 | 123 220 742 243 868 25 Remotely . | . . . . . . Salvage Created 2113 | . 507 947 127 532 . Parts 183 | . 29 65 18 71 . Haulers Intercepted 6 | . 2 4 . . . Recyclers Shooed 1 | . . 1 . . . Parts Field Recycled . | . . . . . . Retrieved Matter . | . . . . . . Parts Self-Destructed . | . . . . . . Prevented . | . . . . . . Kills | -11 -10 -9 -9 -9 -8 ------- Run | Scr Mat Mat Min Exi Min Combat Hostiles Destroyed 38 | . 9 12 14 3 . Guns 22 | . 9 12 . 1 . Cannons 1 | . . . 1 . . AOE 15 | . . . 13 2 . Classes Destroyed 13 | . 6 4 1 2 . Worker 4 | . 2 1 1 . . Builder 3 | . 2 . 1 . . Hauler 6 | . 2 4 . . . Recycler 1 | . . 1 . . . Operator 2 | . . 1 1 . . Turret 1 | . . . . 1 . Watcher 5 | . 1 4 . . . Swarmer 11 | . 3 . 8 . . Grunt 15 | . 6 7 2 . . Duelist 1 | . . 1 . . . Sentry 4 | . . 4 . . . Zionite 8 | . . . . 8 . Assembled 11 | . . . 4 7 . Best Kill Streak 6 | . 6 5 6 4 . Combat Bots Only 6 | . 6 3 6 2 . Max Kills in Single Turn 5 | . 4 2 5 5 . Gunslinging 1 | . . 1 . . . Exploded 4 | . . . 4 2 . Melee . | . . . . . . Uniques/NPCs Destroyed 4 | . . . . 4 . 8R-AWN (-9/Exiles) EX-BIN (-9/Exiles) EX-DEC (-9/Exiles) EX-HEX (-9/Exiles) Combat | -11 -10 -9 -9 -9 -8 -------- Run | Scr Mat Mat Min Exi Min Damage Taken 2670 | . 605 567 218 1121 159 Core 543 | . 87 91 . 293 72 Absorbed by Shields . | . . . . . . Core Remaining (%) 82 | 100 65 . . . . Volleys Fired 186 | . 37 45 15 89 . Largest 3 | . 2 3 2 3 . Hottest 80 | . 40 69 80 69 . Shots Fired 503 | . 74 133 20 272 4 Gun 474 | . 74 132 7 261 . Cannon 14 | . . . 3 7 4 Launcher 15 | . . 1 10 4 . Special . | . . . . . . Kinetic 488 | . 74 132 10 268 4 Thermal . | . . . . . . Explosive 15 | . . 1 10 4 . Electromagnetic . | . . . . . . Robot Hit Streak 23 | . 6 11 3 23 4 Robot Miss Streak 5 | . 3 5 2 5 1 Penetration Max . | . . . . . . Secondary Targets 3 | . 1 2 . . . Max Gunslinging Chain 1 | . 1 1 . . . Autonomous 11 | . . . . 7 4 Shots Hit Robots 318 | . 43 81 9 182 3 Core Hits 126 | . 23 31 20 52 . Critical Kills 1 | . . . 1 . . Critical Parts Destroyed 4 | . 1 1 . 2 . Critical Strikes 5 | . 1 1 1 2 . Destroy 5 | . 1 1 1 2 . Melee Attacks . | . . . . . . Impact . | . . . . . . Slashing . | . . . . . . Piercing . | . . . . . . Sneak Attacks . | . . . . . . Combat Hostiles . | . . . . . . Follow-up Attacks . | . . . . . . Damage Inflicted 6844 | . 914 1314 951 3480 185 Guns 4533 | . 521 1310 68 2634 . Cannons 610 | . . . 47 378 185 Explosions 1664 | . 391 . 805 468 . Melee . | . . . . . . Ramming 37 | . 2 4 31 . . Kinetic 5143 | . 521 1310 115 3012 185 Thermal 288 | . 288 . . . . Explosive 1273 | . . . 805 468 . Electromagnetic 103 | . 103 . . . . Impact . | . . . . . . Slashing . | . . . . . . Piercing . | . . . . . . Highest Corruption 5 | . 5 . . . . Average Corruption 4 | . 4 . . . . Corruption Purged . | . . . . . . Corruption Blocked . | . . . . . . Effects 12 | . 12 . . . . Message Errors 2 | . 2 . . . . Matter Fused 1 | . 1 . . . . Heat Flow Errors 2 | . 2 . . . . Energy Discharges 2 | . 2 . . . . Parts Rejected 1 | . 1 . . . . Data Loss (minor) 3 | . 3 . . . . Misfires 1 | . 1 . . . . Overload Shots . | . . . . . . Overflow Damage 250 | . 188 . 32 30 . Projectiles 29 | . . . . 29 . Explosions 221 | . 188 . 32 1 . Melee . | . . . . . . Knockbacks . | . . . . . . Impact . | . . . . . . Kinetic . | . . . . . . Secondary . | . . . . . . Self-Inflicted Damage 133 | . 50 . 83 . . Shots 6 | . 2 . 4 . . Rammed 4 | 1 1 . 2 . . Targets Rammed 6 | 1 1 1 3 . . Kicked 1 | . . 1 . . . Crushed 1 | . . . 1 . . Highest Temperature 300 | . 300 18 18 77 . Average Temperature 30 | . 106 8 8 17 . Received Heat Transfer 521 | . 273 201 38 9 . Siege Activations . | . . . . . . Robots Corrupted . | . . . . . . Combat Hostiles . | . . . . . . Parts Fried . | . . . . . . Impact Corruptions . | . . . . . . Robots Melted . | . . . . . . Combat Hostiles . | . . . . . . Parts Melted 2 | . 1 . . 1 . Heat Transferred 150 | . 150 . . . . Parts Sabotaged . | . . . . . . Parts Stolen . | . . . . . . Parts Stripped . | . . . . . . Power Chain Reactions . | . . . . . . Missiles Intercepted . | . . . . . . Alert | -11 -10 -9 -9 -9 -8 ------- Run | Scr Mat Mat Min Exi Min Peak Influence 409 | . 406 380 409 . 1 Initial 113 | . . 89 113 . . Average 221 | . 219 242 248 . . Maximum Alert Level 2 | . 2 1 2 . . Low Security (%) 29 | 100 16 38 13 . 100 Level 1 63 | . 81 61 69 . . Level 2 6 | . 1 . 16 . . Level 3 . | . . . . . . Level 4 . | . . . . . . Level 5 . | . . . . . . High Security . | . . . . . . Max Security . | . . . . . . Squads Dispatched 3 | . 1 1 1 . . Investigation 2 | . 1 1 . . . Extermination . | . . . . . . Reinforcement 1 | . . . 1 . . Assault . | . . . . . . Garrison . | . . . . . . Intercept . | . . . . . . Searches Triggered . | . . . . . . Construction Impeded 1 | . . . 1 . . Haulers Reinforced . | . . . . . . Active Scanning Responses . | . . . . . . Cargo Convoy Interrupts . | . . . . . . Stealth | -11 -10 -9 -9 -9 -8 --------- Run | Scr Mat Mat Min Exi Min Distress Signals . | . . . . . . Communications Jammed . | . . . . . . Distress Signals . | . . . . . . Times Spotted 63 | . 16 20 12 14 1 Peak Tracking Total 6 | . 4 6 6 5 1 Tactical Retreats 8 | . 2 1 1 4 . Traps | -11 -10 -9 -9 -9 -8 ------- Run | Scr Mat Mat Min Exi Min Traps Triggered 2 | . 1 1 . . . Indirectly . | . . . . . . Trap Hack Attempts . | . . . . . . Triggered . | . . . . . . Disarmed . | . . . . . . Reprogrammed . | . . . . . . Reused . | . . . . . . Traps Extracted . | . . . . . . Installed . | . . . . . . Triggered . | . . . . . . Machines | -11 -10 -9 -9 -9 -8 ---------- Run | Scr Mat Mat Min Exi Min Machines Disabled 14 | . 2 1 1 10 . Max in Single Turn 2 | . 2 1 1 2 . Machines Sabotaged . | . . . . . . Garrisons Compromised . | . . . . . . Overloaded Fab Kills . | . . . . . . Hacking | -11 -10 -9 -9 -9 -8 --------- Run | Scr Mat Mat Min Exi Min Machines Accessed 13 | . 3 8 . 2 . Terminals 8 | . 2 6 . . . Fabricators . | . . . . . . Repair Stations . | . . . . . . Recycling Units 2 | . 1 1 . . . Scanalyzers 1 | . . 1 . . . Garrison Access . | . . . . . . Total Hacks 42 | . 7 33 . 2 . Successful 29 | . 2 25 . 2 . Failed 13 | . 5 8 . . . Catastrophic . | . . . . . . Database Lockouts . | . . . . . . Manual 36 | . 5 30 . 1 . Terminals 33 | . 4 29 . . . Fabricators . | . . . . . . Repair Stations . | . . . . . . Recycling Units 5 | . 3 2 . . . Scanalyzers 2 | . . 2 . . . Garrison Access . | . . . . . . Terminal Hacks 16 | . . 14 . 2 . Record 1 | . . . . 1 . Part Schematic 1 | . . 1 . . . Robot Analysis 4 | . . 4 . . . Prototype ID Bank 8 | . . 8 . . . Terminal Index 1 | . . 1 . . . EX-Prototype ID Bank 1 | . . . . 1 . Fabricator Hacks . | . . . . . . Repair Station Hacks . | . . . . . . Recycling Unit Hacks 2 | . 1 1 . . . Retrieve Components 2 | . 1 1 . . . Scanalyzer 2 | . . 2 . . . Insert Component 1 | . . 1 . . . Analyze 1 | . . 1 . . . Garrison Access Hacks . | . . . . . . Unauthorized Hacks 9 | . 1 8 . . . Terminals 7 | . . 7 . . . Assimilate 1 | . . 1 . . . Botnet 5 | . . 5 . . . Operators 1 | . . 1 . . . Fabricators . | . . . . . . Repair Stations . | . . . . . . Recycling Units 2 | . 1 1 . . . Tunnel 2 | . 1 1 . . . Scanalyzers . | . . . . . . Garrison Access . | . . . . . . Data Cores Recovered 1 | . . 1 . . . Used . | . . . . . . Hacking Detections 10 | . 3 7 . . . Full Trace Events . | . . . . . . Feedback Events . | . . . . . . Feedback Blocked . | . . . . . . Robot Schematics Acquired . | . . . . . . Robots Built . | . . . . . . Authchips . | . . . . . . Time . | . . . . . . Total Robot Build Rating . | . . . . . . Part Schematics Acquired 2 | . . 2 . . . Parts Built . | . . . . . . Authchips . | . . . . . . Time . | . . . . . . Total Part Build Rating . | . . . . . . Parts Repaired . | . . . . . . Time . | . . . . . . Parts Recycled . | . . . . . . Recycled Matter . | . . . . . . Retrieved Matter . | . . . . . . Retrieved Components 6 | . 3 3 . . . Parts Scanalyzed 1 | . . 1 . . . Part Schematics Acquired 1 | . . 1 . . . Parts Damaged . | . . . . . . Bothacking | -11 -10 -9 -9 -9 -8 ------------ Run | Scr Mat Mat Min Exi Min Used RIF Installer . | . . . . . . Robots Hacked . | . . . . . . Non-combat . | . . . . . . Combat . | . . . . . . Robot Hacks Applied . | . . . . . . Relay Couplers Released . | . . . . . . Fabnet Peak Effective % . | . . . . . . Robots Rewired . | . . . . . . Allies Hacked . | . . . . . . Hacks Repelled . | . . . . . . Allies | -11 -10 -9 -9 -9 -8 -------- Run | Scr Mat Mat Min Exi Min Total Allies 1 | . . 1 . . . Largest Group 1 | . . 1 1 . . Highest-Rated Group 10 | . . 10 10 . . Highest-Rated Ally 10 | . . 10 10 . . Total Orders 2 | . . 2 . . . STAY 1 | . . 1 . . . FOLLOW 1 | . . 1 . . . Ally Attacks 1 | . . . . . 1 Total Damage 35 | . . . . . 35 Kills . | . . . . . . Allies Corrupted . | . . . . . . Allies Melted 1 | . . . 1 . . Turrets Deployed 1 | . . . . . 1 Intel | -11 -10 -9 -9 -9 -8 ------- Run | Scr Mat Mat Min Exi Min Robot Analysis Total 4 | . . 4 . . . Derelict Logs Recovered . | . . . . . . Drone Launches . | . . . . . . Drone Recoveries . | . . . . . . Exploration | -11 -10 -9 -9 -9 -8 ------------- Run | Scr Mat Mat Min Exi Min Turns Passed 5750 | 74 613 1075 1190 2628 170 Spaces Moved 2586 | 39 251 533 415 1245 103 Core 2 | 2 . . . . . Treads 2277 | 37 157 320 415 1245 103 Legs 307 | . 94 213 . . . Wheels . | . . . . . . Hover . | . . . . . . Flight . | . . . . . . Fastest Speed 50 | 50 160 120 160 160 160 Average Speed 165 | 154 172 162 160 167 162 Slowest Speed 260 | 160 260 240 160 240 240 Overloaded Moves . | . . . . . . Propulsion Burnouts . | . . . . . . Robots Hopped . | . . . . . . Cave-ins Triggered . | . . . . . . Exploration Rate (%) 48 | 4 49 44 76 90 29 Regions Visited 5 Branch Regions 3 Pre-discovered Areas 3 | . 1 1 . 1 . Known Exits Taken . | . . . . . . Unknown Exits Taken 5 | 1 1 1 1 1 . Scrap Searched 2 | . . . 1 . 1 Spaces Dug . | . . . . . . Terrain Destroyed 152 | . 25 13 100 13 1 Melee . | . . . . . . Projectile 5 | . . . 4 . 1 AOE 147 | . 25 13 96 13 . Terrain Rammed . | . . . . . . Walls Destroyed . | . . . . . . Machines Disabled . | . . . . . . Actions | -11 -10 -9 -9 -9 -8 --------- Run | Scr Mat Mat Min Exi Min Total 3684 | 50 361 643 920 1602 108 Wait 720 | . 26 13 480 201 . Move 2581 | 38 250 532 414 1244 103 Hop . | . . . . . . Pick Up 67 | 4 21 22 2 18 . Fast Attach 24 | 5 10 5 1 3 . Attach 24 | 1 2 4 2 14 1 Detach 8 | . 1 1 . 5 1 Swap 15 | . 2 4 . 9 . Drop 53 | 1 11 16 3 19 3 Fire 186 | . 37 45 15 89 . Melee . | . . . . . . Ram . | . . . . . . Kick 1 | . . 1 . . . Crush 5 | 1 1 . 3 . . Escape Stasis . | . . . . . . Rewire . | . . . . . . Trap . | . . . . . . Miscellaneous . | . . . . . . Route ------- -11/Scrapyard -10/Materials (discovered 2 exits: *Mat x2) -9/Materials (discovered 3 exits: [*Mat] / [*Min x2]) -9/Mines (discovered 3 exits: [*Mat x2] / *Exi) -9/Exiles -8/Mines History --------- Turn | Location | Event 21 | -11/Scrapyard | Discovered new exit (range 16) 75 | -11/Scrapyard | Entered Materials 232 | -10/Materials | Discovered new exit (range 8) 310 | -10/Materials | Build established: Mutant 478 | -10/Materials | Discovered new exit (range 15) 688 | -10/Materials | Entered another Materials area 688 | -9/Materials | Evolved 2 slots: Propulsion x1, Weapon x1 864 | -9/Materials | Discovered new exit (range 8) 1004 | -9/Materials | Build established: Gunner 1252 | -9/Materials | Discovered new exit (range 5) 1393 | -9/Materials | Build established: Scavenger-Gunner 1751 | -9/Materials | Discovered new exit (range 6) 1763 | -9/Materials | Entered Mines 1763 | -9/Mines | Accompanied by 1 ally 1763 | -9/Mines | Discovered new exit (range 8) 1832 | -9/Mines | Met a Derelict bent on vengeance 1894 | -9/Mines | Assembled infested the area 1899 | -9/Mines | Assisted by a Guerilla fighting off Assembled 2010 | -9/Mines | Build established: Scavenger-Mutant 2535 | -9/Mines | Discovered new exit (range 7) 2945 | -9/Mines | Deemed a non-threat by the Exiles lab entrance 2946 | -9/Mines | Discovered new exit (range 5) 2953 | -9/Mines | Entered Exiles 2993 | -9/Exiles | Met 8R-AWN 3019 | -9/Exiles | Met EX-HEX 3096 | -9/Exiles | Met EX-DEC 3121 | -9/Exiles | Learned location of Zion (-6) 3222 | -9/Exiles | Met EX-BIN 3245 | -9/Exiles | Aligned with FarCom system 3246 | -9/Exiles | Given EX-Vault access code 3283 | -9/Exiles | Opened EX-Vault 3321 | -9/Exiles | Warned to stay clear of 0b10 Research branches 3551 | -9/Exiles | Attacked by the Exiles 3632 | -9/Exiles | Core integrity fell below 50% 3659 | -9/Exiles | Lost 3 parts (3n) 3730 | -9/Exiles | Lost 3 parts (1p2n) 3765 | -9/Exiles | Destroyed 8R-AWN 3877 | -9/Exiles | Found AWS/Autocannon 4024 | -9/Exiles | Core integrity fell below 20% 4283 | -9/Exiles | Destroyed EX-BIN 4421 | -9/Exiles | Build established: Scavenger-Gunner 4733 | -9/Exiles | Destroyed EX-DEC 4752 | -9/Exiles | Destroyed EX-HEX 4901 | -9/Exiles | Found Prototype Processor 4921 | -9/Exiles | Identified Exp. Core Analyzer 4980 | -9/Exiles | Found Prototype Device 4984 | -9/Exiles | Identified AS-neutralizer No. 17b 5215 | -9/Exiles | Found Deploy-a-Sentry 5423 | -9/Exiles | Found Gui. Plasma Cannon 5428 | -9/Exiles | Found XL Autogun Array 5565 | -9/Exiles | Discovered new exit (range 12) 5581 | -9/Exiles | Stole four prototypes: Gui. Plasma Cannon, XL Autogun Array, AWS/Autocannon, Deploy-a-Sentry 5581 | -9/Exiles | Entered Mines 5739 | -8/Mines | CL-ANK came to Exiles' defense 5741 | -8/Mines | DAS Turret deployed 5751 | -8/Mines | Destroyed by CL-ANK with CL-ANK's Mallet Last Messages --------------- 05423_ Acquired Gui. Plasma Cannon. 05427_ Dropped Mni. Grenade Launcher. 05428_ Acquired XL Autogun Array. 05565_ EXIT=FOUND A strange signal echoes through the mines. LOCATION=UNKNOWN GOAL=ESCAPE 05697_ Searching scrap... 05697_ Found Ion Engine. 05697_ Found Hpw. Shotgun. 05697_ Found Hvy. Particle Cannon. 05697_ Found Cryofiber Web. 05697_ Found 25 Matter. 05698_ Acquired 25 matter. 05739_ CL-ANK: "I came as fast as I could... Wait, it was you!" 05740_ Dropped Deploy-a-Sentry. 05741_ DAS Turret deployed. 05742_ DAS Turret suffers critical hit (Smash). 05742_ DAS Turret destroyed. 05743_ Dropped Imp. Assault Rifle. Map ----- +----------------------------------------------------+ | ??????????????????????????????? | | ??????????????????????????????? | | ??????????????????????????????? | | ??????????????????????????????? | | ??????????????????????????????? | | ??????????????????????????????? | | ??????????????????????????????? | | ??????????????????????????????? | | ??????????????????????????????? | | ??????????????????????????????? | | ??????????????????????????????? | | ??????????????????? #?????????? | | ??????????????????? #?????????? | | ??????????????????? #?????????? | | ??????????????????? #?????????? | | ??????????????????? #?????????? | | ??????????####????? ##????????? | | ??????????# ##???# ##???????? | | ?????????## #??# ##??????? | | ?????????# #??# #??????? | | ????????## ##?## ???????? | | ?????###; ##??# ????????? | | ????## ##???# ?????????? | | ???## [[ #????#[]#??????????? | | ???# b % ##???# *##?????????? | | ???# @% ###?#! ##????????? | | ??## % % ### ##???????? | | ??# ##??????? | | ??# """ #??????? | | ??# """ ##????## | | ??# """ ###### | | ??## #### ### | | ???###???###### ##?### | | ??????????????#####????######## | | ??????????????????????????????? | | ??????????????????????????????? | | ??????????????????????????????? | | ??????????????????????????????? | | | | | | | | | | | | | | | | | | | | | | | | | +----------------------------------------------------+ Best States ------------- Heat Dissipation 28 Energy Generation 19 Energy Capacity 265 Matter Stores 300 Matter Capacity 300 Sight Range 16 Terrain Scan Density 10 Evasion (%) 55 Targeting Accuracy 6 Recoil Reduction 3 Item Schematics ----------------- Huge Storage Unit | -9/Materials | Hacked Hcp. Storage Unit | -9/Materials | Scanalyzed Robot Schematics ------------------ None Fabricated ------------ Nothing Alien Tech Used ----------------- None Achievements -------------- None Challenges ------------ None Game ------ Seed LauncherStasisJammer Manual? 0 Play Time 00:21:33 Cumulative 234.4 hours Start 2022.04.13 @ 18:07:31 End 2022.04.13 @ 18:28:39 Sessions 1 Manual Loads 0 Difficulty Rogue Special Mode None Game No. 337 Rogue 315 Adventurer 4 Explorer 18 Win Type - Total 10 Types 8/0/0/2/0/0/0/0/0 Lore% 70 Gallery% 88 Achievement% 71 Wizard Run 0 Options --------- ASCII 0 Keyboard 1 Movement Numpad Keybinds 0 Fullscreen 1 Font 18/SmallcapsGlow Map View 76x50 Tactical HUD 1 Map Filters NONE Filters NONE Steam 1 RUN: ac723eb4-3abe-4a41-afd0-e335113def70